Cogmind - Beta 12 *** ADVENTURER MODE // 2023.09.04 @ 14:44:08 Player: Hayori Result: Destroyed by L-31 Rogue with Katana Performance ------------- Evolutions (1) 500 Regions Visited (3) 600 Robots Destroyed (54) 270 Value Destroyed (1314) 1314 Prototype IDs (4) 80 Alien Tech Used (0) 0 Bonus (134) 134 TOTAL SCORE: 2898 Bonus ------- High Alert Combat Kills 24 Follower Combat Kills 110 Cogmind --------- Core Integrity 0/400 Matter 310/400 Energy 280/280 System Corruption 2% Temperature Warm (160) Movement Walking (260) Ox2 Location -9/Mines Parts ------- > --- POWER (2) -------- Heavy Ion Engine > --- PROPULSION (2) --- Carbon-fiber Leg > --- UTILITY (3) ------ Large Storage Unit Medium Matter Pod Machine Analyzer > --- WEAPON (2) ------- Mini Grenade Launcher > --- INVENTORY (15) --- Heavy Ion Engine Large Storage Unit Large Storage Unit Light EM Pulse Cannon Light EM Pulse Cannon Light Assault Rifle Light Assault Rifle Improved Light Cannon Mini Grenade Launcher Signal Generator Peak State ------------ > --- POWER ------------ Heavy Ion Engine > --- PROPULSION ------- Aluminum Leg Carbon-fiber Leg > --- UTILITY ---------- Large Storage Unit Medium Matter Pod Machine Analyzer > --- WEAPON ----------- Mini Grenade Launcher Mini Grenade Launcher > --- INVENTORY -------- Heavy Ion Engine Large Storage Unit Large Storage Unit Light EM Pulse Cannon Light EM Pulse Cannon Light Assault Rifle Light Assault Rifle Mini Grenade Launcher Signal Generator [Rating: 17] Favorites ----------- Power Heavy Ion Engine Engine Heavy Ion Engine Power Core Light Nuclear Core Propulsion Wheel Leg Aluminum Leg Wheel Wheel Utility Large Storage Unit Storage Large Storage Unit Processor Machine Analyzer Weapon Mini Grenade Launcher Energy Gun EM Pulse Gun Energy Cannon Light EM Pulse Cannon Ballistic Gun Light Assault Rifle Launcher Mini Grenade Launcher Special Weapon Welding Torch Build | -11 -10 -9 -9 ------- Run | Jun Mat Mat Min Slots Evolved 2 | . . 2 . Power 1 | . . 1 . Propulsion . | . . . . Utility 1 | . . 1 . Weapon . | . . . . Parts Attached 34 | 6 10 15 3 Power 6 | 1 . 4 1 Engine 5 | 1 . 3 1 Core 1 | . . 1 . Reactor . | . . . . Propulsion 7 | 2 1 2 2 Treads . | . . . . Leg 4 | . 1 1 2 Wheel 3 | 2 . 1 . Hover . | . . . . Flight . | . . . . Utility 10 | 1 5 4 . Device . | . . . . Storage 8 | 1 4 3 . Processor 2 | . 1 1 . Hackware . | . . . . Protection . | . . . . Artifact . | . . . . Weapon 11 | 2 4 5 . Energy Gun 1 | 1 . . . Energy Cannon 1 | . 1 . . Ballistic Gun 2 | 1 1 . . Ballistic Cannon . | . . . . Launcher 6 | . 1 5 . Special Weapon 1 | . 1 . . Impact Weapon . | . . . . Slashing Weapon . | . . . . Piercing Weapon . | . . . . Special Melee Weapon . | . . . . Unidentified Prototypes . | . . . . Corrupted Parts 1 | . . 1 . System Corruption 2 | . . 2 . Parts Lost 16 | . 1 11 4 Power 5 | . . 4 1 Propulsion 4 | . . 2 2 Utility 1 | . . 1 . Weapon 6 | . 1 4 1 Highest Loss Streak 10 | . 1 10 2 To Critical Strikes . | . . . . Average Slot Usage (%) 84 | . 96 78 80 Engine 12 | . 14 10 13 Core 1 | . . 3 . Leg 8 | . 5 5 11 Wheel 8 | . 22 5 2 Storage 23 | . 24 23 22 Processor 7 | . 1 7 11 Energy Cannon 3 | . 7 3 . Ballistic Gun 4 | . 14 2 . Launcher 13 | . . 16 18 Naked Turns . | . . . . Heaviest Build 65 | 13 50 65 35 Greatest Support 25 | 20 20 20 25 Greatest Overweight (x) 15 | 1 4 15 10 Average Overweight (x) 2 | . 2 5 2 Largest Inventory Capacity 15 | 8 15 15 15 Average Capacity 14 | 6 14 15 15 Most Carried 15 | 3 15 14 10 Average Carried 9 | . 10 9 9 Final Capacity 15 | 8 15 15 15 Final Carried 14 | 1 14 9 10 Class Distribution -------------------- 94% | Mutant 5% | Scavenger-Mutant Dominant Class ---------------- Mutant | -10/Materials Mutant | -9/Materials Mutant | -9/Mines Resources | -11 -10 -9 -9 ----------- Run | Jun Mat Mat Min Matter Collected 1030 | 213 197 213 407 Remotely . | . . . . Salvage Created 1222 | . 407 563 252 Parts 84 | . 16 48 20 Haulers Intercepted 1 | . . 1 . Recyclers Shooed 2 | . . 2 . Parts Field Recycled . | . . . . Retrieved Matter . | . . . . Parts Self-Destructed . | . . . . Prevented . | . . . . Kills | -11 -10 -9 -9 ------- Run | Jun Mat Mat Min Combat Hostiles Destroyed 31 | . 10 14 7 Guns 6 | . 6 . . Cannons 4 | . 2 2 . AOE 21 | . 2 12 7 Classes Destroyed 11 | . 3 6 2 Worker 2 | . . . 2 Builder 11 | . . 9 2 Tunneler 2 | . . 1 1 Hauler 1 | . . 1 . Recycler 2 | . . 1 1 Mechanic 2 | . . 2 . Watcher 3 | . 3 . . Swarmer 2 | . 2 . . Grunt 26 | . 8 12 6 Brawler 1 | . . . 1 Sentry 2 | . . 2 . Best Kill Streak 13 | . 4 13 4 Combat Bots Only 6 | . 4 6 2 Max Kills in Single Turn 6 | . 1 6 2 Gunslinging . | . . . . Exploded 3 | . 1 3 2 Melee . | . . . . Uniques/NPCs Destroyed . | . . . . Combat | -11 -10 -9 -9 -------- Run | Jun Mat Mat Min Damage Taken 1796 | . 419 867 510 Core 541 | . 132 208 201 Absorbed by Shields . | . . . . Core Remaining (%) 73 | 100 47 . . Volleys Fired 74 | . 43 21 10 Largest 2 | . 2 2 2 Hottest 86 | . 76 86 60 Shots Fired 124 | . 71 35 18 Gun 50 | . 50 . . Cannon 22 | . 18 4 . Launcher 52 | . 3 31 18 Special . | . . . . Kinetic 45 | . 45 . . Thermal . | . . . . Explosive 52 | . 3 31 18 Electromagnetic 27 | . 23 4 . Robot Hit Streak 18 | . 18 16 6 Robot Miss Streak 2 | . 2 2 1 Penetration Max . | . . . . Secondary Targets 1 | . 1 . . Max Gunslinging Chain 1 | . 1 . . Shots Hit Robots 92 | . 56 23 13 Core Hits 97 | . 25 52 20 Critical Kills . | . . . . Critical Parts Destroyed . | . . . . Critical Strikes 1 | . 1 . . Corrupt 1 | . 1 . . Melee Attacks . | . . . . Impact . | . . . . Slashing . | . . . . Piercing . | . . . . Sneak Attacks . | . . . . Combat Hostiles . | . . . . Follow-up Attacks . | . . . . Damage Inflicted 4236 | . 974 2120 1142 Guns 364 | . 364 . . Cannons 499 | . 430 69 . Explosions 3369 | . 180 2051 1138 Melee . | . . . . Ramming 4 | . . . 4 Kinetic 312 | . 312 . . Thermal 44 | . 44 . . Explosive 3325 | . 136 2051 1138 Electromagnetic 551 | . 482 69 . Impact . | . . . . Slashing . | . . . . Piercing . | . . . . Highest Corruption 2 | . . 2 2 Average Corruption 2 | . . 2 2 Corruption Purged . | . . . . Corruption Blocked . | . . . . Effects 18 | . . 9 9 Message Errors 2 | . . . 2 Matter Fused 6 | . . 4 2 Heat Flow Errors 5 | . . 2 3 Energy Discharges 2 | . . 1 1 Data Loss (minor) 1 | . . 1 . Misfires 1 | . . . 1 Alerts 1 | . . 1 . Overload Shots . | . . . . Overflow Damage 105 | . 48 22 35 Projectiles 48 | . 48 . . Explosions 57 | . . 22 35 Melee . | . . . . Knockbacks . | . . . . Impact . | . . . . Kinetic . | . . . . Secondary . | . . . . Self-Inflicted Damage 402 | . . 182 220 Shots 15 | . . 6 9 Rammed . | . . . . Targets Rammed 1 | . . . 1 Kicked 1 | . . . 1 Crushed . | . . . . Highest Temperature 237 | . 152 166 237 Average Temperature 54 | . 53 44 70 Received Heat Transfer 774 | . 195 459 120 Siege Activations . | . . . . Robots Corrupted . | . . . . Combat Hostiles . | . . . . Parts Fried 5 | . 5 . . Impact Corruptions . | . . . . Robots Melted . | . . . . Combat Hostiles . | . . . . Parts Melted . | . . . . Heat Transferred 50 | . 50 . . Parts Sabotaged . | . . . . Parts Stolen . | . . . . Parts Stripped . | . . . . Power Chain Reactions 1 | . 1 . . Missiles Intercepted . | . . . . Alert | -11 -10 -9 -9 ------- Run | Jun Mat Mat Min Peak Influence 480 | . 282 480 233 Initial 107 | . . 54 107 Average 197 | . 153 295 176 Maximum Alert Level 2 | . 1 2 1 Low Security (%) 58 | 100 63 30 70 Level 1 33 | . 36 38 29 Level 2 8 | . . 30 . Level 3 . | . . . . Level 4 . | . . . . Level 5 . | . . . . High Security . | . . . . Max Security . | . . . . Squads Dispatched 8 | . 2 4 2 Investigation 3 | . 2 1 . Extermination . | . . . . Reinforcement 4 | . . 3 1 Assault 1 | . . . 1 Garrison . | . . . . Intercept . | . . . . Searches Triggered . | . . . . Construction Impeded 2 | . . 1 1 Haulers Reinforced . | . . . . Active Scanning Responses . | . . . . Cargo Convoy Interrupts . | . . . . Stealth | -11 -10 -9 -9 --------- Run | Jun Mat Mat Min Distress Signals 3 | . . 3 . Communications Jammed . | . . . . Distress Signals . | . . . . Times Spotted 53 | . 16 23 14 Peak Tracking Total 8 | . 5 8 4 Tactical Retreats . | . . . . Traps | -11 -10 -9 -9 ------- Run | Jun Mat Mat Min Traps Triggered . | . . . . Indirectly . | . . . . Trap Hack Attempts . | . . . . Triggered . | . . . . Disarmed 6 | . 6 . . Reprogrammed . | . . . . Reused . | . . . . Traps Extracted . | . . . . Installed . | . . . . Triggered . | . . . . Machines | -11 -10 -9 -9 ---------- Run | Jun Mat Mat Min Machines Disabled 9 | . 1 8 . Max in Single Turn 3 | . 1 3 . Machines Repaired . | . . . . Machines Sabotaged . | . . . . Overloaded Fab Kills . | . . . . Hacking | -11 -10 -9 -9 --------- Run | Jun Mat Mat Min Machines Accessed 7 | . 5 2 . Terminals 5 | . 4 1 . Fabricators . | . . . . Repair Stations 1 | . 1 . . Recycling Units 1 | . . 1 . Scanalyzers . | . . . . Garrison Access . | . . . . Total Hacks 27 | . 23 4 . Successful 20 | . 16 4 . Failed 7 | . 7 . . Catastrophic . | . . . . Database Lockouts . | . . . . Manual . | . . . . Terminals 22 | . 21 1 . Fabricators . | . . . . Repair Stations 2 | . 2 . . Recycling Units 3 | . . 3 . Scanalyzers . | . . . . Garrison Access . | . . . . Terminal Hacks 15 | . 14 1 . Record 4 | . 4 . . Robot Analysis 2 | . 2 . . Prototype ID Bank 2 | . 2 . . Branch Access Points 1 | . 1 . . Alert Level 4 | . 4 . . Disarm Traps 1 | . 1 . . Recall Reinforcements 1 | . . 1 . Fabricator Hacks . | . . . . Repair Station Hacks 2 | . 2 . . Scan Component 1 | . 1 . . Repair 1 | . 1 . . Recycling Unit Hacks 3 | . . 3 . Retrieve Matter 3 | . . 3 . Scanalyzer . | . . . . Garrison Access Hacks . | . . . . Unauthorized Hacks . | . . . . Terminals . | . . . . Fabricators . | . . . . Repair Stations . | . . . . Recycling Units . | . . . . Scanalyzers . | . . . . Garrison Access . | . . . . Data Cores Recovered . | . . . . Used . | . . . . Hacking Detections 7 | . 5 2 . Full Trace Events 5 | . 4 1 . Feedback Events . | . . . . Feedback Blocked . | . . . . Robot Schematics Acquired . | . . . . Robots Built . | . . . . Authchips . | . . . . Time . | . . . . Total Robot Build Rating . | . . . . Part Schematics Acquired . | . . . . Parts Built . | . . . . Authchips . | . . . . Time . | . . . . Total Part Build Rating . | . . . . Parts Repaired . | . . . . Time 26 | . 26 . . Parts Recycled . | . . . . Recycled Matter . | . . . . Retrieved Matter 54 | . . 54 . Retrieved Components . | . . . . Parts Scanalyzed . | . . . . Part Schematics Acquired . | . . . . Parts Damaged . | . . . . Bothacking | -11 -10 -9 -9 ------------ Run | Jun Mat Mat Min Used RIF Installer . | . . . . Robots Hacked . | . . . . Non-combat . | . . . . Combat . | . . . . Robot Hacks Applied . | . . . . Relay Couplers Released . | . . . . Fabnet Peak Effective % . | . . . . Robots Rewired . | . . . . Allies Hacked . | . . . . Hacks Repelled . | . . . . Allies | -11 -10 -9 -9 -------- Run | Jun Mat Mat Min Total Allies 1 | . . . 1 Largest Group 1 | . . . 1 Highest-Rated Group 31 | . . . 31 Highest-Rated Ally 31 | . . . 31 Total Orders . | . . . . Ally Attacks 16 | . . . 16 Total Damage 270 | . . . 270 Kills 4 | . . . 4 Allies Corrupted . | . . . . Allies Melted . | . . . . Intel | -11 -10 -9 -9 ------- Run | Jun Mat Mat Min Robot Analysis Total 2 | . 2 . . Derelict Logs Recovered 2 | . . . 2 Drone Launches . | . . . . Drone Recoveries . | . . . . Exploration | -11 -10 -9 -9 ------------- Run | Jun Mat Mat Min Turns Passed 1800 | 68 469 514 749 Spaces Moved 897 | 44 300 183 370 Core 36 | 8 . 23 5 Treads . | . . . . Legs 243 | . . 14 229 Wheels 618 | 36 300 146 136 Hover . | . . . . Flight . | . . . . Fastest Speed 50 | 50 80 110 125 Average Speed 167 | 80 110 237 188 Slowest Speed 800 | 100 140 800 550 Overloaded Moves . | . . . . Propulsion Burnouts . | . . . . Robots Hopped . | . . . . Cave-ins Triggered . | . . . . Exploration Rate (%) 31 | 3 51 19 53 Regions Visited 3 Branch Regions 1 Pre-discovered Areas . | . . . . Known Exits Taken 1 | . 1 . . Unknown Exits Taken 2 | 1 . 1 . Scrap Searched 1 | . . . 1 Spaces Dug 5 | . . 5 . Terrain Destroyed 206 | . 27 49 130 Melee . | . . . . Projectile . | . . . . AOE 206 | . 27 49 130 Terrain Rammed . | . . . . Walls Destroyed . | . . . . Machines Disabled . | . . . . Actions | -11 -10 -9 -9 --------- Run | Jun Mat Mat Min Total 1080 | 76 376 224 404 Wait 36 | 20 . . 16 Move 894 | 43 299 182 370 Hop . | . . . . Pick Up 36 | 7 19 6 4 Fast Attach . | . . . . Attach 26 | 6 6 11 3 Detach 1 | . 1 . . Swap 8 | . 4 4 . Drop 4 | . 4 . . Fire 74 | . 43 21 10 Melee . | . . . . Ram . | . . . . Kick 1 | . . . 1 Crush . | . . . . Escape Stasis . | . . . . Rewire . | . . . . Trap . | . . . . Miscellaneous . | . . . . Route ------- -11/Junkyard -10/Materials (discovered 2 exits: *Mat / *Min) -9/Materials -9/Mines History --------- Turn | Location | Event 50 | -11/Junkyard | Discovered new exit (range 16) 69 | -11/Junkyard | Entered Materials 129 | -10/Materials | Discovered new exit (range 16) 211 | -10/Materials | Identified exit to Mines 313 | -10/Materials | Build established: Mutant 484 | -10/Materials | Discovered new exit (range 12) 514 | -10/Materials | Core integrity fell below 50% 536 | -10/Materials | Identified exit to Materials 538 | -10/Materials | Entered another Materials area 538 | -9/Materials | Evolved 2 slots: Power x1, Utility x1 750 | -9/Materials | Discovered new exit (range 16) 809 | -9/Materials | Lost 10 parts (4p2n4w) 851 | -9/Materials | Core integrity fell below 50% 1052 | -9/Materials | Entered Mines 1053 | -9/Mines | Met a Derelict testing a Signal Generator 1062 | -9/Mines | Found Signal Generator 1385 | -9/Mines | Learned 8 Materials zone layouts 1772 | -9/Mines | Core integrity fell below 20% 1801 | -9/Mines | Destroyed by L-31 Rogue with Katana Last Messages --------------- 01595_ Destroyed Mni. Grenade Launcher. 01605_ The unstable cave ceiling collapses. 01608_ U-05 Engineer lays Concrete. 01609_ U-05 Engineer builds a Wall. 01613_ Acquired 9 matter. 01613_ U-05 Engineer lays Concrete. 01624_ Acquired Imp. Light Cannon. 01625_ U-05 Engineer lays Concrete. 01644_ System corrupted: Energy discharge (-112). 01663_ Acquired derelict log, extracted data. Data stored: Factory entrances (x1). 01688_ K-01 Serf collects debris. 01708_ System corrupted: Heat flow error (+240). 01712_ K-01 Serf collects debris. 01748_ K1T0CATGLJ6QMUE|UT4MG&Y 01787_ M-13 Machinist repairs L-31 Rogue. 01789_ G-34 Mercenary destroyed. 01795_ Aluminum Leg destroyed. 01795_ K-01 Serf collects debris. 01800_ System corrupted: Heat flow error (+182). Map ----- +----------------------------------------------------+ | | | | | | | | | | | | | | | | | | | | | | | | | | | | | | | | | | | ????????????????????????????????????????????????? | | ????????????????????????????????????????????????? | | ?????????????????????????????###????????????????? | | ????????????????####????????# ##???????????????? | | ???????????????## ####???? ##??####????????? | | ????????????#### #### #?## ##???????? | | ????????????# ## #?# #???????? | | ????????????# #?## ##??????? | | ????????????+ @l #?## #??????? | | ????????????+ =* ##?# #??????? | | ????????????# [%! ###??# #??????? | | ????????????# == ###### #??????? | | ????????????## ##?????? | | ????????????# k ###### #?????? | | ???????????# t ## #????## #?????? | | ???????????# ## #### ##????## ##?????? | | ???????????? ??###?## #####?## ##??????? | | ???????????? ??????## #??## ##???????? | | ?????????????#????#### ### #???####???????## | | ?????????????????## #?# #########??????# | | ?????????????##### ##?# #???#### | | ????????????## ### ######??######### ##### | | ???????????## #### #???????????????# [ ## | | ??????????## ### #???????????????###### % | | ??????????# #???????????####?????# | | ??????????# ### #??????????## ##???### % # | | ??????????## ### #########??# #???# %* | | ???????????## #??# #???# | | ????????????# ## ######### #### ##??### | | ????????????## ### #???????# #???# # | | ?????????????####?# #???????####### #??### ## | | ??????????????????# #####?????????## #??# | | ?????????????????? $## ##?########## #### | +----------------------------------------------------+ Best States ------------- Heat Dissipation 28 Energy Generation 19 Energy Capacity 310 Matter Stores 400 Matter Capacity 400 Sight Range 16 Terrain Scan Density 10 Resistance: KI 20 Resistance: TH 20 Resistance: EX 20 Resistance: EM 20 Resistance: I 20 Resistance: S 20 Resistance: P 20 Evasion (%) 44 Offensive Hacking 10 Item Schematics ----------------- None Robot Schematics ------------------ None Fabricated ------------ Nothing Alien Tech Used ----------------- None Achievements -------------- Maybe Next Time I'll Detach My Launcher Challenges ------------ None Game ------ Seed TerrabombArchitectNetwork Manual? 0 Play Time 00:21:00 Cumulative 5.3 hours Start 2023.08.24 @ 23:11:10 End 2023.09.04 @ 14:44:08 Sessions 5 Manual Loads 0 Difficulty Adventurer Special Mode None Game No. 14 Rogue 0 Adventurer 14 Explorer 0 Win Type - Total 0 Types 0/0/0/0/0/0/0/0/0 Lore% 4 Gallery% 10 Achievement% 10 Wizard Run 0 Options --------- ASCII 0 Keyboard 0 Movement Mouse Keybinds 0 Fullscreen 1 Font 18/X11Bold Map View 76x50 Tactical HUD 1 Map Filters NONE Filters NONE Steam 1 RUN: 430765f7-0ed3-4618-a6f1-7dc2792fecbb